[Event "EYCC Open U10 2021"]
[Site "Tornelo"]
[Date "2021.10.15"]
[Round "7.7"]
[White "Kengurov, Yaroslav"]
[Black "Dumbelovic, Novak"]
[Result "1-0"]
[ECO "E62"]
[WhiteElo "1484"]
[BlackElo "1688"]
[Annotator "NA RC"]
[PlyCount "109"]
[EventDate "2021.10.15"]
[EventType "swiss"]
[EventCountry "NET"]
[SourceTitle "playchess.com"]
[Source "ChessBase"]
[SourceQuality "1"]
[TimeControl "5400+30"]

1. d4 {[%emt 0:00:30]} Nf6 {[%emt 0:01:01]} 2. c4 {[%emt 0:00:06]} g6 {[%emt 0:00:58]} 3. Nf3 {[%emt 0:00:08]} Bg7 {[%emt 0:01:14]} 4. g3 {[%emt 0:00:07]} O-O {[%emt 0:00:39]} 5. Bg2 {[%emt 0:00:08]} d6 {[%emt 0:00:24]} 6. O-O {[%emt 0:00:09]} Nbd7 {[%emt 0:03:26]} 7. Nc3 {[%emt 0:00:10]} e5 {[%emt 0:05:23]} 8. dxe5 {[%emt 0:00:05]} Nxe5 {[%emt 0:05:56]} 9. Nxe5 {[%emt 0:00:07]} dxe5 {[%emt 0:00:05]} 10. Qxd8 {[%emt 0:00:04]} Rxd8 {[%emt 0:00:05]} 11. Bg5 {[%emt 0:00:04]} Re8 {[%emt 0:05:49]} 12. Nb5 {[%emt 0:00:17]} Re7 {[%emt 0:05:36]} 13. Rfd1 {[%emt 0:00:55]} Be6 {[%emt 0:05:33]} 14. Bxb7 {[%emt 0:00:54]} Rb8 {[%emt 0:05:34]} 15. Bg2 {[%emt 0:00:18]} Bxc4 {[%emt 0:06:04]} 16. Nxa7 {[%emt 0:00:19]} Rd7 {[%emt 0:08:41]} 17. Rxd7 {[%emt 0:03:11]} Nxd7 {[%emt 0:00:11]} 18. b3 {[%emt 0:02:18]} Bxe2 {[%emt 0:07:07]} 19. Nc6 {[%emt 0:00:54]} Rb6 {[%emt 0:05:19]} 20. Ne7+ {[%emt 0:02:43]} Kf8 {[%emt 0:03:39]} 21. Nd5 {[%emt 0:00:13]} Rc6 {[%emt 0:06:13]} 22. a4 {[%emt 0:04:53]} e4 {[%emt 0:02:29]} 23. Re1 {[%emt 0:02:46]} Bd3 {[%emt 0:01:41]} 24. a5 {[%emt 0:11:11]} Nc5 {[%emt 0:10:39]} 25. Be7+ {[%emt 0:03:52]} Ke8 {[%emt 0:01:13]} 26. Nb4 {[%emt 0:00:05]} Kxe7 {[%emt 0:02:29]} 27. Nxc6+ {[%emt 0:00:12]} Kd7 {[%emt 0:00:04]} 28. Nb4 {[%emt 0:00:26]} Bc3 {[%emt 0:00:30]} 29. a6 {[%emt 0:07:43]} Nxa6 {[%emt 0:01:34]} 30. Rd1 {[%emt 0:00:26]} Bxb4 {[%emt 0:03:05]} 31. Bxe4 {[%emt 0:00:12]} Bd6 {[%emt 0:00:25]} 32. Bxd3 {[%emt 0:00:12]} Nc5 {[%emt 0:00:30]} 33. Bb5+ {[%emt 0:00:10]} Ke7 {[%emt 0:00:21]} 34. Re1+ {[%emt 0:00:23]} Kf6 {[%emt 0:00:11]} 35. b4 {[%emt 0:00:32]} Ne6 {[%emt 0:00:11]} 36. Re4 {[%emt 0:01:21]} Ng5 {[%emt 0:00:25]} 37. Rc4 {[%emt 0:00:11]} Nf3+ {[%emt 0:00:26]} 38. Kg2 {[%emt 0:00:12]} Ne5 {[%emt 0:00:07]} 39. Rd4 {[%emt 0:01:26]} Ke6 {[%emt 0:00:30]} 40. Ba4 {[%emt 0:00:53]} c5 {[%emt 0:00:41]} 41. Bb3+ {[%emt 0:00:48]} Ke7 {[%emt 0:00:39]} 42. Re4 {[%emt 0:01:11]} Kf6 {[%emt 0:01:05]} 43. bxc5 {[%emt 0:00:46]} Bxc5 {[%emt 0:00:04]} 44. Ra4 {[%emt 0:00:12]} Be7 {[%emt 0:00:46]} 45. Ra6+ {[%emt 0:00:13]} Kg7 {[%emt 0:00:06]} 46. Ra7 {[%emt 0:00:08]} Kf6 {[%emt 0:00:11]} 47. f4 {[%emt 0:00:18]} Nd3 {[%emt 0:00:27]} 48. Kf3 {[%emt 0:00:33]} h6 {[%emt 0:00:18]} 49. g4 {[%emt 0:00:35]} g5 {[%emt 0:01:10]} 50. fxg5+ {[%emt 0:00:38]} hxg5 {[%emt 0:00:13]} 51. h4 {[%emt 0:00:55]} Bc5 {[%emt 0:02:35]} 52. Rxf7+ {[%emt 0:00:13]} Kg6 {[%emt 0:00:05]} 53. h5+ {[%emt 0:00:17]} Kh6 {[%emt 0:00:17]} 54. Rf6+ {[%emt 0:00:13]} Kh7 {[%emt 0:00:07]} 55. Bc2 {[%emt 0:00:07]} 1-0

[Event "EYCC Open U10 2021"]
[Site "Tornelo"]
[Date "2021.10.15"]
[Round "7.8"]
[White "Gabadadze, Gabriel"]
[Black "Demchenko, Maksim Dm"]
[Result "1/2-1/2"]
[ECO "D20"]
[WhiteElo "1407"]
[BlackElo "1615"]
[Annotator "NA RC"]
[PlyCount "133"]
[EventDate "2021.10.15"]
[EventType "swiss"]
[EventCountry "NET"]
[SourceTitle "playchess.com"]
[Source "ChessBase"]
[SourceQuality "1"]
[TimeControl "5400+30"]

1. e4 {[%emt 0:00:30]} e6 {[%emt 0:00:33]} 2. c4 {[%emt 0:00:09]} d5 {[%emt 0:06:10]} 3. exd5 {[%emt 0:00:21]} exd5 {[%emt 0:00:03]} 4. cxd5 {[%emt 0:00:07]} Qxd5 {[%emt 0:00:05]} 5. Nc3 {[%emt 0:00:14]} Qd8 {[%emt 0:00:15]} 6. Bc4 {[%emt 0:00:35]} Bd6 {[%emt 0:01:48]} 7. Nf3 {[%emt 0:00:43]} Nf6 {[%emt 0:00:05]} 8. O-O {[%emt 0:00:39]} O-O {[%emt 0:00:05]} 9. d4 {[%emt 0:00:32]} h6 {[%emt 0:01:57]} 10. h3 {[%emt 0:01:17]} c6 {[%emt 0:08:56]} 11. Be3 {[%emt 0:01:21]} Bf5 {[%emt 0:02:46]} 12. Rc1 {[%emt 0:01:43]} Nbd7 {[%emt 0:00:18]} 13. d5 {[%emt 0:06:06]} c5 {[%emt 0:11:34]} 14. Bd3 {[%emt 0:01:45]} Bxd3 {[%emt 0:01:34]} 15. Qxd3 {[%emt 0:00:22]} a6 {[%emt 0:00:58]} 16. a4 {[%emt 0:01:09]} Rc8 {[%emt 0:02:38]} 17. b3 {[%emt 0:05:01]} Re8 {[%emt 0:02:15]} 18. Rfd1 {[%emt 0:02:10]} Qc7 {[%emt 0:20:11]} 19. Qc4 {[%emt 0:04:04]} Re7 {[%emt 0:09:09]} 20. Nh4 {[%emt 0:15:44]} Ne5 {[%emt 0:01:32]} 21. Qe2 {[%emt 0:00:35]} Qd7 {[%emt 0:04:20]} 22. Nf3 {[%emt 0:01:22]} Ng6 {[%emt 0:00:59]} 23. Qc4 {[%emt 0:07:57]} Qf5 {[%emt 0:05:59]} 24. Qd3 {[%emt 0:03:35]} Qxd3 {[%emt 0:00:28]} 25. Rxd3 {[%emt 0:00:27]} c4 {[%emt 0:01:44]} 26. Nb1 {[%emt 0:03:30]} Rec7 {[%emt 0:03:02]} 27. bxc4 {[%emt 0:11:20]} Rxc4 {[%emt 0:00:03]} 28. Rxc4 {[%emt 0:00:15]} Rxc4 {[%emt 0:00:04]} 29. Rd4 {[%emt 0:00:59]} Rxd4 {[%emt 0:00:22]} 30. Bxd4 {[%emt 0:00:30]} Nxd5 {[%emt 0:00:05]} 31. Nc3 {[%emt 0:01:17]} Nxc3 {[%emt 0:00:50]} 32. Bxc3 {[%emt 0:00:16]} Nf4 {[%emt 0:00:04]} 33. Kf1 {[%emt 0:04:59]} g6 {[%emt 0:04:07]} 34. h4 {[%emt 0:02:43]} Kf8 {[%emt 0:02:40]} 35. g3 {[%emt 0:00:34]} Nd5 {[%emt 0:00:04]} 36. Bd2 {[%emt 0:00:29]} h5 {[%emt 0:00:03]} 37. Ke2 {[%emt 0:00:47]} Ke7 {[%emt 0:00:47]} 38. Kd3 {[%emt 0:01:00]} Bc5 {[%emt 0:01:03]} 39. Nd4 {[%emt 0:02:59]} Kd6 {[%emt 0:02:19]} 40. Bh6 {[%emt 0:02:18]} Bxd4 {[%emt 0:02:59]} 41. Kxd4 {[%emt 0:00:18]} f6 {[%emt 0:00:31]} 42. Bd2 {[%emt 0:01:31]} b5 {[%emt 0:00:48]} 43. axb5 {[%emt 0:00:34]} axb5 {[%emt 0:00:04]} 44. Bc1 {[%emt 0:02:57]} Kc6 {[%emt 0:01:34]} 45. Bb2 {[%emt 0:00:52]} Nc7 {[%emt 0:02:02]} 46. Kd3 {[%emt 0:02:03]} Ne8 {[%emt 0:00:15]} 47. Kd4 {[%emt 0:00:25]} Nd6 {[%emt 0:01:29]} 48. Ba3 {[%emt 0:00:41]} Nc4 {[%emt 0:01:23]} 49. Bb4 {[%emt 0:00:21]} Ne5 {[%emt 0:00:26]} 50. Be7 {[%emt 0:00:40]} Ng4 {[%emt 0:00:48]} 51. f3 {[%emt 0:00:41]} Ne5 {[%emt 0:00:05]} 52. Bxf6 {[%emt 0:01:18]} Nxf3+ {[%emt 0:00:05]} 53. Ke3 {[%emt 0:00:48]} Nh2 {[%emt 0:00:10]} 54. Kf4 {[%emt 0:04:39]} Kd5 {[%emt 0:00:20]} 55. Kg5 {[%emt 0:00:43]} Nf1 {[%emt 0:00:47]} 56. Kxg6 {[%emt 0:01:36]} Nxg3 {[%emt 0:00:03]} 57. Bb2 {[%emt 0:00:24]} b4 {[%emt 0:00:33]} 58. Kg5 {[%emt 0:00:40]} Ke4 {[%emt 0:00:18]} 59. Ba1 {[%emt 0:00:29]} b3 {[%emt 0:00:16]} 60. Bb2 {[%emt 0:00:46]} Kd3 {[%emt 0:02:17]} 61. Ba1 {[%emt 0:01:28]} Kc2 {[%emt 0:00:43]} 62. Kf4 {[%emt 0:00:46]} Ne2+ {[%emt 0:00:04]} 63. Kg5 {[%emt 0:00:09]} Kb1 {[%emt 0:00:19]} 64. Be5 {[%emt 0:01:06]} Kc2 {[%emt 0:00:10]} 65. Ba1 {[%emt 0:00:22]} Ng3 {[%emt 0:00:53]} 66. Kf4 {[%emt 0:00:12]} Ne2+ {[%emt 0:00:18]} 67. Kg5 {[%emt 0:00:09]} 1/2-1/2

[Event "EYCC Open U10 2021"]
[Site "Tornelo"]
[Date "2021.10.15"]
[Round "7.9"]
[White "Feher, Botond"]
[Black "Kozlov, Kirill Dm."]
[Result "1-0"]
[ECO "B84"]
[WhiteElo "1644"]
[BlackElo "1228"]
[Annotator "NA RC"]
[PlyCount "105"]
[EventDate "2021.10.15"]
[EventType "swiss"]
[EventCountry "NET"]
[SourceTitle "playchess.com"]
[Source "ChessBase"]
[SourceQuality "1"]
[TimeControl "5400+30"]

1. e4 {[%emt 0:00:30]} c5 {[%emt 0:00:35]} 2. Nf3 {[%emt 0:00:45]} e6 {[%emt 0:00:06]} 3. d4 {[%emt 0:00:29]} cxd4 {[%emt 0:00:04]} 4. Nxd4 {[%emt 0:00:39]} a6 {[%emt 0:00:09]} 5. Nc3 {[%emt 0:00:44]} Qc7 {[%emt 0:00:08]} 6. Be2 {[%emt 0:00:42]} Nf6 {[%emt 0:00:08]} 7. O-O {[%emt 0:00:49]} Be7 {[%emt 0:00:15]} 8. Be3 {[%emt 0:00:34]} d6 {[%emt 0:00:12]} 9. f4 {[%emt 0:00:48]} Nbd7 {[%emt 0:00:27]} 10. Kh1 {[%emt 0:00:40]} b5 {[%emt 0:00:11]} 11. a3 {[%emt 0:02:10]} Bb7 {[%emt 0:00:11]} 12. Bd3 {[%emt 0:03:10]} O-O {[%emt 0:05:09]} 13. Qf3 {[%emt 0:04:36]} Rfd8 {[%emt 0:02:13]} 14. Rae1 {[%emt 0:05:22]} Rac8 {[%emt 0:02:04]} 15. Bc1 {[%emt 0:05:16]} Nb6 {[%emt 0:08:57]} 16. Qh3 {[%emt 0:04:09]} h6 {[%emt 0:04:40]} 17. Rf3 {[%emt 0:02:19]} Nc4 {[%emt 0:11:49]} 18. Rg3 {[%emt 0:03:32]} h5 {[%emt 0:01:27]} 19. e5 {[%emt 0:09:45]} dxe5 {[%emt 0:04:38]} 20. Nxe6 {[%emt 0:00:39]} fxe6 {[%emt 0:07:52]} 21. Qxe6+ {[%emt 0:00:10]} Kf8 {[%emt 0:14:07]} 22. fxe5 {[%emt 0:01:32]} Nxe5 {[%emt 0:01:03]} 23. Rxe5 {[%emt 0:01:19]} Bd6 {[%emt 0:00:34]} 24. Qxf6+ {[%emt 0:00:45]} Kg8 {[%emt 0:05:03]} 25. Qe6+ {[%emt 0:00:53]} Qf7 {[%emt 0:01:31]} 26. Bh7+ {[%emt 0:01:02]} Kxh7 {[%emt 0:00:54]} 27. Qxf7 {[%emt 0:00:07]} Bxe5 {[%emt 0:00:05]} 28. Qxh5+ {[%emt 0:00:08]} Kg8 {[%emt 0:00:07]} 29. Qxe5 {[%emt 0:00:06]} Rd7 {[%emt 0:00:17]} 30. Qe6+ {[%emt 0:00:42]} Rf7 {[%emt 0:00:06]} 31. Rxg7+ {[%emt 0:00:41]} Kxg7 {[%emt 0:00:13]} 32. Bh6+ {[%emt 0:00:05]} Kh7 {[%emt 0:00:41]} 33. Qxf7+ {[%emt 0:00:03]} Kxh6 {[%emt 0:00:03]} 34. Qxb7 {[%emt 0:00:03]} Rf8 {[%emt 0:00:04]} 35. Qxa6+ {[%emt 0:00:04]} Kh7 {[%emt 0:00:04]} 36. Qxb5 {[%emt 0:00:18]} Rg8 {[%emt 0:00:08]} 37. Qh5+ {[%emt 0:00:05]} Kg7 {[%emt 0:00:05]} 38. Qg5+ {[%emt 0:00:02]} Kf7 {[%emt 0:00:03]} 39. Qxg8+ {[%emt 0:00:02]} Kxg8 {[%emt 0:00:04]} 40. a4 {[%emt 0:00:03]} Kf8 {[%emt 0:00:03]} 41. a5 {[%emt 0:00:04]} Ke7 {[%emt 0:00:03]} 42. a6 {[%emt 0:00:02]} Ke6 {[%emt 0:00:04]} 43. a7 {[%emt 0:00:01]} Ke5 {[%emt 0:00:03]} 44. a8=Q {[%emt 0:00:03]} Kd6 {[%emt 0:00:04]} 45. Qb7 {[%emt 0:00:02]} Ke5 {[%emt 0:00:04]} 46. Qd5+ {[%emt 0:00:02]} Kf6 {[%emt 0:00:05]} 47. Ne4+ {[%emt 0:00:01]} Ke7 {[%emt 0:00:04]} 48. Qd6+ {[%emt 0:00:02]} Kf7 {[%emt 0:00:07]} 49. Ng5+ {[%emt 0:00:02]} Kg7 {[%emt 0:00:04]} 50. Qe6 {[%emt 0:00:03]} Kh8 {[%emt 0:00:12]} 51. Qf6+ {[%emt 0:00:02]} Kg8 {[%emt 0:00:04]} 52. Qf7+ {[%emt 0:00:01]} Kh8 {[%emt 0:00:02]} 53. Qh7# {[%emt 0:00:01]} 1-0

[Event "EYCC Open U10 2021"]
[Site "Tornelo"]
[Date "2021.10.15"]
[Round "7.11"]
[White "Golis, Wiktor"]
[Black "Nemitz, Alfred"]
[Result "1-0"]
[ECO "B07"]
[WhiteElo "1684"]
[BlackElo "1450"]
[Annotator "NA RC"]
[PlyCount "47"]
[EventDate "2021.10.15"]
[EventType "swiss"]
[EventCountry "NET"]
[SourceTitle "playchess.com"]
[Source "ChessBase"]
[SourceQuality "1"]
[TimeControl "5400+30"]

1. d4 {[%emt 0:00:30]} d6 {[%emt 0:01:32]} 2. e4 {[%emt 0:00:11]} Nf6 {[%emt 0:00:08]} 3. Nc3 {[%emt 0:00:17]} Nbd7 {[%emt 0:00:17]} 4. g4 {[%emt 0:00:14]} h6 {[%emt 0:00:24]} 5. h3 {[%emt 0:00:20]} e5 {[%emt 0:00:09]} 6. Nge2 {[%emt 0:00:32]} exd4 {[%emt 0:03:43]} 7. Qxd4 {[%emt 0:01:36]} g6 {[%emt 0:06:59]} 8. g5 {[%emt 0:04:04]} hxg5 {[%emt 0:00:18]} 9. Bxg5 {[%emt 0:00:08]} Bg7 {[%emt 0:00:33]} 10. O-O-O {[%emt 0:00:30]} Ne5 {[%emt 0:01:46]} 11. Bg2 {[%emt 0:02:37]} Be6 {[%emt 0:06:23]} 12. f4 {[%emt 0:01:38]} Nc6 {[%emt 0:01:54]} 13. Qa4 {[%emt 0:02:11]} Bd7 {[%emt 0:07:13]} 14. Qb3 {[%emt 0:02:51]} O-O {[%emt 0:05:08]} 15. e5 {[%emt 0:01:48]} dxe5 {[%emt 0:00:56]} 16. Bxc6 {[%emt 0:00:44]} bxc6 {[%emt 0:02:52]} 17. fxe5 {[%emt 0:00:16]} Rb8 {[%emt 0:05:12]} 18. Qa3 {[%emt 0:01:17]} Re8 {[%emt 0:10:03]} 19. exf6 {[%emt 0:00:44]} Bf8 {[%emt 0:01:14]} 20. Qa6 {[%emt 0:04:05]} Re5 {[%emt 0:04:38]} 21. Qd3 {[%emt 0:02:05]} Bd6 {[%emt 0:03:03]} 22. Bf4 {[%emt 0:01:53]} Bf5 {[%emt 0:00:15]} 23. Qc4 {[%emt 0:01:17]} Be6 {[%emt 0:03:35]} 24. Qxc6 {[%emt 0:02:23]} 1-0

[Event "EYCC Open U10 2021"]
[Site "Tornelo"]
[Date "2021.10.15"]
[Round "7.12"]
[White "Karpenko, Anton"]
[Black "Boldyrev, Maxim"]
[Result "1-0"]
[ECO "E62"]
[WhiteElo "1634"]
[BlackElo "1327"]
[Annotator "NA RC"]
[PlyCount "73"]
[EventDate "2021.10.15"]
[EventType "swiss"]
[EventCountry "NET"]
[SourceTitle "playchess.com"]
[Source "ChessBase"]
[SourceQuality "1"]
[TimeControl "5400+30"]

1. d4 {[%emt 0:00:30]} Nf6 {[%emt 0:00:34]} 2. c4 {[%emt 0:00:04]} g6 {[%emt 0:00:01]} 3. g3 {[%emt 0:00:03]} Bg7 {[%emt 0:00:02]} 4. Bg2 {[%emt 0:00:03]} O-O {[%emt 0:00:02]} 5. Nc3 {[%emt 0:00:03]} d6 {[%emt 0:00:02]} 6. Nf3 {[%emt 0:00:02]} Nc6 {[%emt 0:00:03]} 7. O-O {[%emt 0:00:04]} e5 {[%emt 0:00:05]} 8. dxe5 {[%emt 0:00:03]} dxe5 {[%emt 0:00:10]} 9. Bg5 {[%emt 0:00:03]} Be6 {[%emt 0:00:19]} 10. Qc1 {[%emt 0:00:04]} Bxc4 {[%emt 0:01:08]} 11. Nd2 {[%emt 0:00:07]} Ba6 {[%emt 0:00:28]} 12. Nde4 {[%emt 0:00:04]} Nd4 {[%emt 0:00:16]} 13. Re1 {[%emt 0:07:43]} c6 {[%emt 0:07:04]} 14. f4 {[%emt 0:01:45]} exf4 {[%emt 0:06:46]} 15. gxf4 {[%emt 0:00:39]} Ne6 {[%emt 0:04:09]} 16. Nxf6+ {[%emt 0:02:07]} Bxf6 {[%emt 0:00:19]} 17. Bh6 {[%emt 0:00:04]} Bg7 {[%emt 0:01:07]} 18. Bxg7 {[%emt 0:03:48]} Kxg7 {[%emt 0:00:11]} 19. e3 {[%emt 0:04:42]} Kg8 {[%emt 0:08:38]} 20. Ne4 {[%emt 0:17:08]} f5 {[%emt 0:00:30]} 21. Nc5 {[%emt 0:00:08]} Qb8 {[%emt 0:01:19]} 22. Nxe6 {[%emt 0:00:35]} Rf6 {[%emt 0:14:59]} 23. Nc5 {[%emt 0:00:13]} Qe8 {[%emt 0:00:17]} 24. Nxa6 {[%emt 0:00:12]} bxa6 {[%emt 0:00:06]} 25. Qc4+ {[%emt 0:00:09]} Kg7 {[%emt 0:00:11]} 26. Rad1 {[%emt 0:00:23]} h6 {[%emt 0:00:23]} 27. e4 {[%emt 0:00:24]} Rd8 {[%emt 0:01:10]} 28. e5 {[%emt 0:00:11]} Re6 {[%emt 0:00:13]} 29. Rxd8 {[%emt 0:00:11]} Qxd8 {[%emt 0:00:04]} 30. Qxe6 {[%emt 0:00:04]} Qd4+ {[%emt 0:00:04]} 31. Kh1 {[%emt 0:00:03]} Qd2 {[%emt 0:00:17]} 32. Qf6+ {[%emt 0:00:05]} Kh7 {[%emt 0:00:04]} 33. Rf1 {[%emt 0:00:06]} Qxb2 {[%emt 0:00:09]} 34. Qf7+ {[%emt 0:00:05]} Kh8 {[%emt 0:00:05]} 35. e6 {[%emt 0:00:03]} Qxa2 {[%emt 0:00:02]} 36. Qf8+ {[%emt 0:00:02]} Kh7 {[%emt 0:00:02]} 37. e7 {[%emt 0:00:05]} 1-0

[Event "EYCC Open U10 2021"]
[Site "Tornelo"]
[Date "2021.10.15"]
[Round "8.1"]
[White "Radzimski, Antoni"]
[Black "Negrean, Andrei"]
[Result "1/2-1/2"]
[ECO "B47"]
[WhiteElo "1584"]
[BlackElo "1847"]
[Annotator "NA"]
[PlyCount "77"]
[EventDate "2021.10.15"]
[EventType "swiss"]
[EventCountry "NET"]
[SourceTitle "playchess.com"]
[Source "ChessBase"]
[SourceQuality "1"]
[TimeControl "5400+30"]

1. e4 {[%emt 0:00:30]} c5 {[%emt 0:00:45]} 2. Nf3 {[%emt 0:00:09]} Nc6 {[%emt 0:00:18]} 3. d4 {[%emt 0:00:06]} cxd4 {[%emt 0:00:13]} 4. Nxd4 {[%emt 0:00:11]} Qc7 {[%emt 0:00:17]} 5. Nc3 {[%emt 0:00:10]} e6 {[%emt 0:00:13]} 6. g3 {[%emt 0:00:06]} a6 {[%emt 0:00:46]} 7. Bg2 {[%emt 0:00:07]} Nf6 {[%emt 0:00:15]} 8. O-O {[%emt 0:00:13]} Nxd4 {[%emt 0:00:41]} 9. Qxd4 {[%emt 0:00:33]} Bc5 {[%emt 0:00:20]} 10. Bf4 {[%emt 0:00:12]} d6 {[%emt 0:02:06]} 11. Qd2 {[%emt 0:01:02]} h6 {[%emt 0:03:50]} 12. Rad1 {[%emt 0:01:22]} e5 {[%emt 0:01:06]} 13. Be3 {[%emt 0:00:15]} Bg4 {[%emt 0:03:36]} 14. f3 {[%emt 0:03:10]} Be6 {[%emt 0:07:41]} 15. Bxc5 {[%emt 0:01:04]} dxc5 {[%emt 0:01:40]} 16. Nd5 {[%emt 0:00:24]} Bxd5 {[%emt 0:00:58]} 17. exd5 {[%emt 0:00:46]} Qd6 {[%emt 0:01:07]} 18. c4 {[%emt 0:00:16]} O-O {[%emt 0:01:08]} 19. Rfe1 {[%emt 0:09:08]} Nd7 {[%emt 0:08:02]} 20. b3 {[%emt 0:02:53]} f5 {[%emt 0:04:48]} 21. Re2 {[%emt 0:06:57]} b5 {[%emt 0:05:02]} 22. f4 {[%emt 0:10:05]} e4 {[%emt 0:01:23]} 23. g4 {[%emt 0:01:55]} g6 {[%emt 0:18:35]} 24. Rde1 {[%emt 0:08:41]} bxc4 {[%emt 0:08:51]} 25. bxc4 {[%emt 0:00:32]} Nb6 {[%emt 0:01:16]} 26. gxf5 {[%emt 0:00:53]} gxf5 {[%emt 0:01:43]} 27. Re3 {[%emt 0:01:53]} Qf6 {[%emt 0:04:43]} 28. Qe2 {[%emt 0:03:03]} Kh7 {[%emt 0:08:13]} 29. Kh1 {[%emt 0:01:45]} Rg8 {[%emt 0:02:57]} 30. Bh3 {[%emt 0:02:58]} Raf8 {[%emt 0:03:16]} 31. Rb1 {[%emt 0:01:40]} Nc8 {[%emt 0:05:49]} 32. Rg3 {[%emt 0:01:20]} Nd6 {[%emt 0:04:13]} 33. Rb6 {[%emt 0:02:35]} Rb8 {[%emt 0:00:31]} 34. Rxd6 {[%emt 0:04:11]} Qxd6 {[%emt 0:00:26]} 35. Bxf5+ {[%emt 0:00:09]} Kh8 {[%emt 0:00:08]} 36. Qxe4 {[%emt 0:01:10]} Qf6 {[%emt 0:00:42]} 37. Rxg8+ {[%emt 0:00:53]} Rxg8 {[%emt 0:00:14]} 38. Qe5 {[%emt 0:01:05]} Rf8 {[%emt 0:00:40]} 39. Be6 {[%emt 0:01:33]} 1/2-1/2

[Event "EYCC Open U10 2021"]
[Site "Tornelo"]
[Date "2021.10.15"]
[Round "8.3"]
[White "Kengurov, Yaroslav"]
[Black "Oikonomopoulos, Filippos"]
[Result "1/2-1/2"]
[ECO "D34"]
[WhiteElo "1484"]
[BlackElo "1650"]
[Annotator "NA"]
[PlyCount "135"]
[EventDate "2021.10.15"]
[EventType "swiss"]
[EventCountry "NET"]
[SourceTitle "playchess.com"]
[Source "ChessBase"]
[SourceQuality "1"]
[TimeControl "5400+30"]

1. d4 {[%emt 0:00:30]} d5 {[%emt 0:00:37]} 2. c4 {[%emt 0:00:05]} e6 {[%emt 0:00:10]} 3. Nf3 {[%emt 0:00:05]} c5 {[%emt 0:00:06]} 4. cxd5 {[%emt 0:00:05]} exd5 {[%emt 0:00:05]} 5. g3 {[%emt 0:00:04]} Nc6 {[%emt 0:00:11]} 6. Bg2 {[%emt 0:00:14]} Nf6 {[%emt 0:00:11]} 7. O-O {[%emt 0:00:12]} Be7 {[%emt 0:00:07]} 8. Nc3 {[%emt 0:00:05]} O-O {[%emt 0:00:06]} 9. Bg5 {[%emt 0:00:06]} c4 {[%emt 0:00:08]} 10. Ne5 {[%emt 0:00:12]} Be6 {[%emt 0:00:05]} 11. Nxc6 {[%emt 0:00:06]} bxc6 {[%emt 0:00:02]} 12. b3 {[%emt 0:00:04]} h6 {[%emt 0:00:10]} 13. Bxf6 {[%emt 0:00:52]} Bxf6 {[%emt 0:00:05]} 14. Na4 {[%emt 0:00:30]} Rb8 {[%emt 0:00:56]} 15. Nc5 {[%emt 0:00:38]} Bg4 {[%emt 0:01:25]} 16. Qd2 {[%emt 0:01:09]} Re8 {[%emt 0:03:11]} 17. e3 {[%emt 0:00:14]} Rb5 {[%emt 0:06:31]} 18. Rac1 {[%emt 0:08:25]} cxb3 {[%emt 0:15:54]} 19. Nxb3 {[%emt 0:01:43]} Qb6 {[%emt 0:02:17]} 20. Qc3 {[%emt 0:01:10]} Be2 {[%emt 0:06:58]} 21. Rfe1 {[%emt 0:01:22]} Bc4 {[%emt 0:00:15]} 22. Bf1 {[%emt 0:02:16]} Rb4 {[%emt 0:05:14]} 23. Bxc4 {[%emt 0:03:32]} dxc4 {[%emt 0:02:44]} 24. Nd2 {[%emt 0:00:44]} c5 {[%emt 0:01:48]} 25. Nxc4 {[%emt 0:02:34]} Qa6 {[%emt 0:00:41]} 26. Ne5 {[%emt 0:10:07]} Bxe5 {[%emt 0:06:04]} 27. dxe5 {[%emt 0:00:19]} Rc8 {[%emt 0:02:10]} 28. Rc2 {[%emt 0:03:53]} Ra4 {[%emt 0:03:09]} 29. Ree2 {[%emt 0:04:23]} Qc6 {[%emt 0:10:31]} 30. Red2 {[%emt 0:04:55]} c4 {[%emt 0:06:32]} 31. Rd6 {[%emt 0:08:16]} Qc5 {[%emt 0:02:18]} 32. Rcd2 {[%emt 0:02:06]} Ra3 {[%emt 0:02:44]} 33. Qc2 {[%emt 0:01:02]} Qa5 {[%emt 0:06:00]} 34. Qf5 {[%emt 0:05:20]} Rf8 {[%emt 0:01:18]} 35. R6d5 {[%emt 0:01:20]} Qb4 {[%emt 0:03:50]} 36. R5d4 {[%emt 0:03:45]} Rc3 {[%emt 0:03:15]} 37. e6 {[%emt 0:03:09]} Rc1+ {[%emt 0:02:08]} 38. Kg2 {[%emt 0:01:57]} Qb7+ {[%emt 0:01:57]} 39. Qe4 {[%emt 0:06:22]} Qxe4+ {[%emt 0:01:06]} 40. Rxe4 {[%emt 0:00:06]} fxe6 {[%emt 0:00:07]} 41. Rxe6 {[%emt 0:00:14]} c3 {[%emt 0:01:44]} 42. Rd7 {[%emt 0:03:05]} Rc2 {[%emt 0:01:42]} 43. Ree7 {[%emt 0:01:10]} Rcxf2+ {[%emt 0:00:32]} 44. Kh3 {[%emt 0:00:05]} R2f7 {[%emt 0:00:40]} 45. Rxf7 {[%emt 0:00:13]} Rxf7 {[%emt 0:00:09]} 46. Rd8+ {[%emt 0:01:38]} Rf8 {[%emt 0:00:07]} 47. Rd3 {[%emt 0:00:24]} Rc8 {[%emt 0:00:08]} 48. Rd1 {[%emt 0:00:09]} Kf7 {[%emt 0:00:37]} 49. Kg4 {[%emt 0:00:14]} Ke6 {[%emt 0:01:06]} 50. Kf3 {[%emt 0:00:20]} Ke5 {[%emt 0:01:26]} 51. Rc1 {[%emt 0:00:48]} c2 {[%emt 0:02:32]} 52. Ke2 {[%emt 0:00:23]} Ke4 {[%emt 0:00:05]} 53. a4 {[%emt 0:01:15]} Rc3 {[%emt 0:00:27]} 54. Kd2 {[%emt 0:01:53]} Rxe3 {[%emt 0:02:35]} 55. Rxc2 {[%emt 0:00:23]} Ra3 {[%emt 0:00:07]} 56. Rc4+ {[%emt 0:00:22]} Kf3 {[%emt 0:00:48]} 57. Rc7 {[%emt 0:01:13]} Rxa4 {[%emt 0:00:16]} 58. Rxg7 {[%emt 0:00:11]} a5 {[%emt 0:00:33]} 59. Rf7+ {[%emt 0:00:29]} Kg4 {[%emt 0:00:46]} 60. Rg7+ {[%emt 0:00:16]} Kh3 {[%emt 0:00:23]} 61. Rh7 {[%emt 0:00:10]} Kxh2 {[%emt 0:00:07]} 62. Rxh6+ {[%emt 0:00:05]} Kxg3 {[%emt 0:00:03]} 63. Kc3 {[%emt 0:00:06]} Re4 {[%emt 0:00:40]} 64. Ra6 {[%emt 0:00:29]} a4 {[%emt 0:00:06]} 65. Kb2 {[%emt 0:00:05]} Kf4 {[%emt 0:00:17]} 66. Ka3 {[%emt 0:00:08]} Ke5 {[%emt 0:00:03]} 67. Rxa4 {[%emt 0:00:10]} Rxa4+ {[%emt 0:00:04]} 68. Kxa4 {[%emt 0:00:04]} 1/2-1/2